fUST/lending_fUST_20250705
["ID","MTS","AMOUNT","RATE_DAILY","PERIOD"]
[369802485,1751728252562,-460.0,0.0002,2]
[369802486,1751728252572,-460.0,0.0002,2]
[369802487,1751728252582,-604.25,0.0002,2]
[369802488,1751728252592,-460.0,0.0002,2]
[369802489,1751728252605,-493.35,0.0002,2]
[369802490,1751728252614,-460.0,0.0002,2]
[369802491,1751728252624,-5891.46,0.0002,2]
[369802492,1751728252634,-1568.05,0.0002,2]
[369802493,1751728252643,-843.99,0.0002,2]
[369802494,1751728252652,-300.0,0.0002,2]
[369802495,1751728252662,-586.04239242,0.0002,2]
[369802496,1751728252671,-515.67,0.0002,2]
[369802497,1751728252680,-1320.23,0.0002,2]
[369802498,1751728252690,-460.0,0.0002,2]
[369802499,1751728252699,-460.0,0.0002,2]
[369802500,1751728252708,-746.4,0.0002,2]
[369802501,1751728252717,-460.0,0.0002,2]
[369802502,1751728252728,-460.0,0.0002,2]
[369802503,1751728252738,-1048.55,0.0002,2]
[369802504,1751728252747,-961.57,0.0002,2]
[369802505,1751728252757,-460.0,0.0002,2]
[369802506,1751728252767,-460.0,0.0002,2]
[369802507,1751728252777,-1389.1,0.0002,2]
[369802508,1751728252787,-540.95,0.0002,2]
[369802509,1751728252798,-555.14,0.0002,2]
[369802510,1751728252807,-460.0,0.0002,2]
[369802511,1751728252817,-460.0,0.0002,2]
[369802512,1751728252826,-460.0,0.0002,2]
[369802513,1751728252835,-460.0,0.0002,2]
[369802514,1751728252844,-460.0,0.0002,2]
[369802515,1751728252853,-460.0,0.0002,2]
[369802516,1751728252863,-507.25,0.0002,2]
[369802517,1751728252872,-460.0,0.0002,2]
[369802518,1751728252881,-460.0,0.0002,2]
[369802519,1751728252890,-2127.43,0.0002,2]
[369802520,1751728252899,-482.52,0.0002,2]
[369802521,1751728252909,-516.28,0.0002,2]
[369802522,1751728252919,-460.0,0.0002,2]
[369802523,1751728252928,-2967.2,0.0002,2]
[369802524,1751728252938,-460.0,0.0002,2]
[369802525,1751728252947,-460.0,0.0002,2]
[369802526,1751728252957,-460.0,0.0002,2]
[369802527,1751728252966,-460.0,0.0002,2]
[369802528,1751728252976,-460.0,0.0002,2]
[369802529,1751728252985,-460.0,0.0002,2]
[369802530,1751728252994,-179.99707372,0.0002,2]
[369802531,1751728253004,-1831.94,0.0002,2]
[369802532,1751728253014,-460.0,0.0002,2]
[369802533,1751728253023,-1837.2,0.0002,2]
[369802534,1751728253032,-647.19,0.0002,2]
[369802535,1751728253042,-4472.86,0.0002,2]
[369802536,1751728253051,-460.0,0.0002,2]
[369802537,1751728253061,-460.0,0.0002,2]
[369802538,1751728253071,-1172.33,0.0002,2]
[369802539,1751728253081,-460.0,0.0002,2]
[369802540,1751728253090,-460.0,0.0002,2]
[369802541,1751728253099,-761.67,0.0002,2]
[369802542,1751728253109,-460.0,0.0002,2]
[369802543,1751728253118,-925.15,0.0002,2]
[369802544,1751728253128,-460.0,0.0002,2]
[369802545,1751728253137,-2892.85,0.0002,2]
[369802546,1751728253147,-570.44,0.0002,2]
[369802547,1751728253156,-460.0,0.0002,2]
[369802548,1751728253165,-734.31,0.0002,2]
[369802549,1751728253175,-966.89,0.0002,2]
[369802550,1751728253184,-460.0,0.0002,2]
[369802551,1751728253193,-592.29,0.0002,2]
[369802552,1751728253203,-460.0,0.0002,2]
[369802553,1751728253212,-460.0,0.0002,2]
[369802554,1751728253222,-460.0,0.0002,2]
[369802556,1751728253231,-460.0,0.0002,2]
[369802558,1751728253240,-460.0,0.0002,2]
[369802560,1751728253249,-460.0,0.0002,2]
[369802561,1751728253259,-1002.98,0.0002,2]
[369802562,1751728253268,-460.0,0.0002,2]
[369802563,1751728253277,-3321.82,0.0002,2]
[369802564,1751728253287,-913.47,0.0002,2]
[369802565,1751728253296,-460.0,0.0002,2]
[369802566,1751728253306,-460.0,0.0002,2]
[369802567,1751728253316,-1667.94,0.0002,2]
[369802568,1751728253325,-2089.01,0.0002,2]
[369802569,1751728253335,-460.0,0.0002,2]
[369802570,1751728253344,-829.18,0.0002,2]
[369802571,1751728253354,-460.0,0.0002,2]
[369802572,1751728253363,-460.0,0.0002,2]
[369802573,1751728253373,-460.0,0.0002,2]
[369802574,1751728253384,-460.0,0.0002,2]
[369802575,1751728253394,-7380.19,0.0002,2]
[369802577,1751728253404,-3405.3,0.0002,2]
[369802579,1751728253413,-1123.76,0.0002,2]
[369802581,1751728253423,-460.0,0.0002,2]
[369802582,1751728253436,-2331.28,0.0002,2]
[369802583,1751728253446,-460.0,0.0002,2]
[369802584,1751728253456,-1174.15,0.0002,2]
[369802585,1751728253465,-771.32,0.0002,2]
[369802586,1751728253475,-460.0,0.0002,2]
[369802587,1751728253484,-3045.74,0.0002,2]
[369802588,1751728253494,-460.0,0.0002,2]
[369802589,1751728253503,-584.13,0.0002,2]
[369802590,1751728253513,-536.27,0.0002,2]
[369802591,1751728253523,-4000.0,0.0002,4]
[369802593,1751728253532,-612.38,0.0002,2]
[369802595,1751728253542,-1059.14,0.0002,2]
[369802596,1751728253551,-460.0,0.0002,2]
[369802597,1751728253561,-8034.08,0.0002,2]
[369802598,1751728253571,-460.0,0.0002,2]
[369802599,1751728253580,-625.41,0.0002,2]
[369802600,1751728253589,-460.0,0.0002,2]
[369802601,1751728253599,-460.0,0.0002,2]
[369802602,1751728253609,-614.67,0.0002,2]
[369802603,1751728253619,-1363.67,0.0002,2]
[369802604,1751728253628,-917.21,0.0002,2]
[369802605,1751728253639,-1778.82,0.0002,2]
[369802606,1751728253649,-1172.89,0.0002,2]
[369802607,1751728253658,-460.0,0.0002,2]
[369802608,1751728253668,-722.29,0.0002,2]
[369802609,1751728253677,-460.0,0.0002,2]
[369802610,1751728253688,-317.03013497,0.00020021,2]
[369802611,1751728253697,-1000.0,0.00020021,2]
[369802612,1751728253707,-1000.0,0.00020021,2]
[369802613,1751728253716,-1016.8785258,0.00020021,2]
[369802614,1751728253726,-1000.0,0.00020021,2]
[369802615,1751728253736,-1000.0,0.00020021,2]
[369802616,1751728253746,-156.827736,0.00020025,2]
[369802617,1751728253755,-156.827736,0.00020025,2]
[369802618,1751728253765,-151.0,0.000201,3]
[369802619,1751728253775,-2408.40498593,0.00020107,2]
[369802620,1751728253784,-509.0,0.00020131,2]
[369802621,1751728253794,-261.05154,0.00020187,2]
[369802622,1751728253804,-350.0,0.00020188,4]
[369802623,1751728253814,-151.0,0.000202,3]
[369802624,1751728253823,-174.845259,0.000202,3]
[369802625,1751728253833,-151.0,0.00020268,2]
[369802626,1751728253842,-261.112421,0.00020273,2]
[369802627,1751728253853,-151.0,0.00020273,2]
[369802628,1751728253862,-460.0,0.00020273,2]
[369802629,1751728253872,-460.0,0.00020273,2]
[369802630,1751728253883,-460.0,0.00020273,2]
[369802631,1751728253893,-460.0,0.00020273,2]
[369802632,1751728253903,-460.0,0.00020273,2]
[369802633,1751728253912,-460.0,0.00020273,2]
[369802634,1751728253922,-460.0,0.00020273,2]
[369802635,1751728253931,-151.0,0.00020273,2]
[369802636,1751728253941,-460.0,0.00020273,2]
[369802637,1751728253951,-156.827736,0.00020273,2]
[369802638,1751728253960,-156.827736,0.00020273,2]
[369802639,1751728253971,-460.0,0.00020273,2]
[369802640,1751728253980,-460.0,0.00020273,2]
[369802641,1751728253990,-460.0,0.00020273,2]
[369802642,1751728254000,-460.0,0.00020273,2]
[369802643,1751728254010,-460.0,0.00020273,2]
[369802644,1751728254019,-460.0,0.00020273,2]
[369802645,1751728254029,-460.0,0.00020273,2]
[369802646,1751728254039,-468.87,0.00020273,2]
[369802647,1751728254048,-556.22,0.00020273,2]
[369802648,1751728254058,-842.32,0.00020273,2]
[369802649,1751728254068,-460.0,0.00020273,2]
[369802650,1751728254078,-460.0,0.00020273,2]
[369802651,1751728254087,-460.0,0.00020273,2]
[369802652,1751728254097,-460.0,0.00020273,2]
[369802653,1751728254107,-460.0,0.00020273,2]
[369802654,1751728254117,-1198.12,0.00020273,2]
[369802655,1751728254126,-460.0,0.00020273,2]
[369802656,1751728254136,-460.0,0.00020273,2]
[369802657,1751728254146,-460.0,0.00020273,2]
[369802658,1751728254156,-1385.11,0.00020273,2]
[369802659,1751728254165,-460.0,0.00020273,2]
[369802660,1751728254175,-547.64,0.00020273,2]
[369802661,1751728254185,-548.64,0.00020273,2]
[369802662,1751728254194,-460.0,0.00020273,2]
[369802663,1751728254204,-915.95,0.00020273,2]
[369802664,1751728254214,-460.0,0.00020273,2]
[369802665,1751728254224,-460.0,0.00020273,2]
[369802666,1751728254234,-460.0,0.00020273,2]
[369802667,1751728254243,-460.0,0.00020273,2]
[369802668,1751728254254,-460.0,0.00020273,2]
[369802669,1751728254264,-460.0,0.00020273,2]
[369802670,1751728254274,-460.0,0.00020273,2]
[369802671,1751728254284,-460.0,0.00020273,2]
[369802672,1751728254294,-596.66253796,0.00020273,2]
[369802673,1751728254303,-460.0,0.00020273,2]
[369802674,1751728254313,-460.0,0.00020273,2]
[369802675,1751728254322,-460.0,0.00020273,2]
[369802676,1751728254332,-473.71,0.00020273,2]
[369802677,1751728254342,-460.0,0.00020273,2]
[369802678,1751728254352,-460.0,0.00020273,2]
[369802679,1751728254362,-544.23,0.00020273,2]
[369802680,1751728254372,-460.0,0.00020273,2]
[369802681,1751728254381,-460.0,0.00020273,2]
[369802682,1751728254391,-460.0,0.00020273,2]
[369802683,1751728254401,-460.0,0.00020273,2]
[369802684,1751728254411,-460.0,0.00020273,2]
[369802685,1751728254421,-460.0,0.00020273,2]
[369802686,1751728254431,-460.0,0.00020273,2]
[369802687,1751728254443,-640.81,0.00020273,2]
[369802688,1751728254453,-460.0,0.00020273,2]
[369802690,1751728254463,-460.0,0.00020273,2]
[369802692,1751728254473,-1173.15,0.00020273,2]
[369802694,1751728254483,-511.43,0.00020273,2]
[369802696,1751728254492,-829.08,0.00020273,2]
[369802697,1751728254502,-818.45,0.00020273,2]
[369802699,1751728254511,-460.0,0.00020273,2]
[369802700,1751728254521,-460.0,0.00020273,2]
[369802701,1751728254531,-460.0,0.00020273,2]
[369802702,1751728254542,-460.0,0.00020273,2]
[369802703,1751728254551,-460.0,0.00020273,2]
[369802704,1751728254561,-460.0,0.00020273,2]
[369802705,1751728254571,-460.0,0.00020273,2]
[369802706,1751728254580,-460.0,0.00020273,2]
[369802707,1751728254590,-460.0,0.00020273,2]
[369802708,1751728254601,-605.44,0.00020273,2]
[369802709,1751728254611,-460.0,0.00020273,2]
[369802710,1751728254622,-477.38,0.00020273,2]
[369802711,1751728254631,-460.0,0.00020273,2]
[369802712,1751728254641,-460.0,0.00020273,2]
[369802713,1751728254651,-460.0,0.00020273,2]
[369802714,1751728254661,-460.0,0.00020273,2]
[369802715,1751728254671,-460.0,0.00020273,2]
[369802716,1751728254680,-460.0,0.00020273,2]
[369802717,1751728254690,-460.0,0.00020273,2]
[369802718,1751728254700,-206.72417044,0.00020273,2]
[369802719,1751728254710,-460.0,0.00020273,2]
[369802720,1751728254720,-460.0,0.00020273,2]
[369802721,1751728254729,-1746.47,0.00020273,2]
[369802722,1751728254739,-460.0,0.00020273,2]
[369802723,1751728254748,-460.0,0.00020273,2]
[369802724,1751728254758,-157.15,0.00020273,2]
[369802725,1751728254768,-172.75,0.00020273,2]
[369802726,1751728254777,-460.0,0.00020273,2]
[369802727,1751728254787,-460.0,0.00020273,2]
[369802728,1751728254798,-1036.02,0.00020273,2]
[369802729,1751728254807,-662.47,0.00020273,2]
[369802730,1751728254817,-460.0,0.00020273,2]
[369802731,1751728254828,-3267.76,0.00020273,2]
[369802732,1751728254838,-295.97494485,0.00020273,2]
[369802733,1751728254847,-2133.56,0.00020273,2]
[369802734,1751728254858,-3079.9,0.00020273,2]
[369802735,1751728254868,-460.0,0.00020273,2]
[369802736,1751728254878,-736.05,0.00020273,2]
[369802737,1751728254888,-2623.93,0.00020273,2]
[369802738,1751728254899,-460.0,0.00020273,2]
[369802739,1751728254909,-460.0,0.00020273,2]
[369802740,1751728254919,-5899.19,0.00020273,2]
[369802741,1751728254929,-1275.43,0.00020273,2]
[369802742,1751728254939,-1685.45,0.00020273,2]
[369802743,1751728254949,-460.0,0.00020273,2]
[369802744,1751728254959,-460.0,0.00020273,2]
[369802745,1751728254968,-460.0,0.00020273,2]
[369802746,1751728254978,-460.0,0.00020273,2]
[369802747,1751728254987,-604.25,0.00020273,2]
[369802748,1751728254998,-460.0,0.00020273,2]
[369802749,1751728255008,-493.35,0.00020273,2]
[369802750,1751728255019,-460.0,0.00020273,2]
[369802751,1751728255029,-5891.46,0.00020273,2]
[369802752,1751728255039,-1568.05,0.00020273,2]
[369802753,1751728255049,-843.99,0.00020273,2]
[369802754,1751728255059,-515.67,0.00020273,2]
[369802755,1751728255068,-1320.23,0.00020273,2]
[369802756,1751728255078,-460.0,0.00020273,2]
[369802757,1751728255087,-460.0,0.00020273,2]
[369802758,1751728255097,-746.4,0.00020273,2]
[369802759,1751728255107,-460.0,0.00020273,2]
[369802760,1751728255117,-460.0,0.00020273,2]
[369802761,1751728255127,-1048.55,0.00020273,2]
[369802762,1751728255137,-961.57,0.00020273,2]
[369802763,1751728255148,-460.0,0.00020273,2]
[369802764,1751728255158,-460.0,0.00020273,2]
[369802765,1751728255168,-1389.1,0.00020273,2]
[369802766,1751728255178,-540.95,0.00020273,2]
[369802767,1751728255188,-555.14,0.00020273,2]
[369802768,1751728255198,-460.0,0.00020273,2]
[369802769,1751728255208,-460.0,0.00020273,2]
[369802770,1751728255218,-460.0,0.00020273,2]
[369802771,1751728255228,-460.0,0.00020273,2]
[369802772,1751728255238,-460.0,0.00020273,2]
[369802773,1751728255248,-460.0,0.00020273,2]
[369802774,1751728255259,-507.25,0.00020273,2]
[369802775,1751728255270,-460.0,0.00020273,2]
[369802776,1751728255280,-238.63719114,0.00020273,2]
[369802777,1751728255290,-2127.43,0.00020273,2]
[369802778,1751728255300,-482.52,0.00020273,2]
[369802779,1751728255310,-516.28,0.00020273,2]
[369802780,1751728255320,-460.0,0.00020273,2]
[369802781,1751728255329,-2967.2,0.00020273,2]
[369802782,1751728255339,-460.0,0.00020273,2]
[369802783,1751728255349,-460.0,0.00020273,2]
[369802784,1751728255358,-460.0,0.00020273,2]
[369802785,1751728255368,-460.0,0.00020273,2]
[369802786,1751728255377,-460.0,0.00020273,2]
[369802787,1751728255387,-460.0,0.00020273,2]
[369802788,1751728255397,-1831.94,0.00020273,2]
[369802789,1751728255406,-460.0,0.00020273,2]
[369802790,1751728255417,-1837.2,0.00020273,2]
[369802791,1751728255427,-647.19,0.00020273,2]
[369802792,1751728255441,-4472.86,0.00020273,2]
[369802793,1751728255451,-460.0,0.00020273,2]
[369802794,1751728255460,-460.0,0.00020273,2]
[369802795,1751728255470,-1172.33,0.00020273,2]
[369802796,1751728255481,-460.0,0.00020273,2]
[369802797,1751728255491,-460.0,0.00020273,2]
[369802798,1751728255501,-761.67,0.00020273,2]
[369802799,1751728255511,-460.0,0.00020273,2]
[369802800,1751728255521,-925.15,0.00020273,2]
[369802801,1751728255531,-460.0,0.00020273,2]
[369802802,1751728255542,-2892.85,0.00020273,2]
[369802803,1751728255704,-570.44,0.00020273,2]
[369802804,1751728255715,-460.0,0.00020273,2]
[369802805,1751728255724,-734.31,0.00020273,2]
[369802806,1751728255734,-966.89,0.00020273,2]
[369802807,1751728255744,-460.0,0.00020273,2]
[369802808,1751728255754,-592.29,0.00020273,2]
[369802809,1751728255764,-460.0,0.00020273,2]
[369802810,1751728255773,-460.0,0.00020273,2]
[369802811,1751728255782,-173.81,0.00020273,2]
[369802812,1751728255792,-536.54,0.00020273,2]
[369802813,1751728255801,-460.0,0.00020273,2]
[369802814,1751728255811,-460.0,0.00020273,2]
[369802815,1751728255820,-1002.98,0.00020273,2]
[369802816,1751728255830,-460.0,0.00020273,2]
[369802817,1751728255839,-3321.82,0.00020273,2]
[369802818,1751728255849,-913.47,0.00020273,2]
[369802819,1751728255858,-460.0,0.00020273,2]
[369802820,1751728255867,-460.0,0.00020273,2]
[369802821,1751728255877,-1667.94,0.00020273,2]
[369802822,1751728255887,-2089.01,0.00020273,2]
[369802823,1751728255896,-460.0,0.00020273,2]
[369802824,1751728255906,-829.18,0.00020273,2]
[369802825,1751728255915,-460.0,0.00020273,2]
[369802826,1751728255925,-460.0,0.00020273,2]
[369802827,1751728255934,-7380.19,0.00020273,2]
[369802828,1751728255944,-460.0,0.00020273,2]
[369802829,1751728255954,-3405.3,0.00020273,2]
[369802830,1751728255964,-1123.76,0.00020273,2]
[369802831,1751728255974,-460.0,0.00020273,2]
[369802832,1751728255983,-2331.28,0.00020273,2]
[369802833,1751728255993,-460.0,0.00020273,2]
[369802834,1751728256002,-1174.15,0.00020273,2]
[369802835,1751728256011,-771.32,0.00020273,2]
[369802836,1751728256021,-3045.74,0.00020273,2]
[369802837,1751728256031,-539.59,0.00020273,2]
[369802838,1751728256040,-584.13,0.00020273,2]
[369802839,1751728256050,-612.38,0.00020273,2]
[369802840,1751728256060,-1059.14,0.00020273,2]
[369802841,1751728256069,-8034.08,0.00020273,2]
[369802842,1751728256079,-460.0,0.00020273,2]
[369802843,1751728256088,-625.41,0.00020273,2]
[369802844,1751728256098,-552.66,0.00020273,2]
[369802845,1751728256107,-614.67,0.00020273,2]
[369802846,1751728256117,-1363.67,0.00020273,2]
[369802847,1751728256126,-917.21,0.00020273,2]
[369802848,1751728256135,-1778.82,0.00020273,2]
[369802849,1751728256145,-1172.89,0.00020273,2]
[369802850,1751728256155,-460.0,0.00020273,2]
[369802851,1751728256164,-722.29,0.00020273,2]
[369802852,1751728256174,-460.0,0.00020273,2]
[369802853,1751728256183,-2408.40498593,0.00020314,3]
[369802854,1751728256192,-1000.75685423,0.00020321,2]
[369802855,1751728256202,-1000.0,0.00020321,2]
[369802856,1751728256211,-1000.0,0.00020321,2]
[369802857,1751728256221,-509.0,0.00020326,2]
[369802858,1751728256231,-476.0,0.0002039,2]
[369802859,1751728256240,-350.0,0.00020397,4]
[369802860,1751728256250,-151.0,0.000204,4]
[369802861,1751728256259,-12580.16877015,0.00020405,2]
[369802862,1751728256268,-160.0,0.00020405,2]
[369802863,1751728256278,-160.0,0.00020405,2]
[369802864,1751728256288,-215.14521394,0.00020405,2]
[369802865,1751728256297,-230.42616721,0.00020405,2]
[369802866,1751728256307,-214.00689675,0.00020405,2]
[369802867,1751728256317,-848.02350475,0.00020405,2]
[369802868,1751728256326,-160.0,0.00020405,2]
[369802869,1751728256335,-837.5764301,0.00020405,2]
[369802870,1751728256345,-160.0,0.00020405,2]
[369802871,1751728256354,-160.0,0.00020405,2]
[369802872,1751728256364,-160.0,0.00020405,2]
[369802873,1751728256373,-476.0,0.0002041,2]
[369802874,1751728256383,-307.518305,0.00020411,2]
[369802875,1751728256392,-509.0,0.00020434,2]
[369802876,1751728256402,-509.0,0.00020471,2]
[369802877,1751728256412,-509.0,0.00020477,2]
[369802878,1751728256421,-509.0,0.00020484,2]
[369802879,1751728256431,-214.00689675,0.00020521,3]
[369802880,1751728256444,-848.02350475,0.00020521,3]
[369802881,1751728256454,-12580.16877015,0.00020521,3]
[369802882,1751728256463,-2408.40498593,0.00020521,3]
[369802883,1751728256473,-160.0,0.00020521,3]
[369802884,1751728256482,-215.0738,0.00020535,2]
[369802885,1751728256491,-160.0,0.00020538,3]
[369802886,1751728256501,-2573.22,0.00020538,3]
[369802887,1751728256511,-151.0,0.00020538,2]
[369802888,1751728256521,-151.0,0.00020547,2]
[369802889,1751728256531,-460.0,0.00020547,2]
[369802890,1751728256541,-460.0,0.00020547,2]
[369802891,1751728256551,-460.0,0.00020547,2]
[369802892,1751728256561,-321.96,0.00020547,2]
[369802893,1751728256570,-460.0,0.00020547,2]
[369802894,1751728256582,-460.0,0.00020547,2]
[369802895,1751728256591,-460.0,0.00020547,2]
[369802896,1751728256601,-151.0,0.00020547,2]
[369802897,1751728256611,-460.0,0.00020547,2]
[369802898,1751728256622,-156.827736,0.00020547,2]
[369802899,1751728256632,-156.827736,0.00020547,2]
[369802900,1751728256641,-460.0,0.00020547,2]
[369802901,1751728256651,-460.0,0.00020547,2]
[369802902,1751728256660,-460.0,0.00020547,2]
[369802903,1751728256670,-460.0,0.00020547,2]
[369802904,1751728256679,-460.0,0.00020547,2]
[369802905,1751728256690,-460.0,0.00020547,2]
[369802906,1751728256699,-460.0,0.00020547,2]
[369802907,1751728256709,-468.87,0.00020547,2]
[369802908,1751728256719,-556.22,0.00020547,2]
[369802909,1751728256729,-842.32,0.00020547,2]
[369802910,1751728256738,-460.0,0.00020547,2]
[369802911,1751728256748,-304.86252794,0.00020547,2]
[369802912,1751728256758,-460.0,0.00020547,2]
[369802913,1751728256767,-460.0,0.00020547,2]
[369802914,1751728256777,-180.36,0.00020547,2]
[369802915,1751728256786,-1198.12,0.00020547,2]
[369802916,1751728256796,-460.0,0.00020547,2]
[369802917,1751728256806,-460.0,0.00020547,2]
[369802918,1751728256816,-1385.11,0.00020547,2]
[369802919,1751728256825,-460.0,0.00020547,2]
[369802920,1751728256834,-547.64,0.00020547,2]
[369802921,1751728256844,-548.64,0.00020547,2]
[369802922,1751728256854,-460.0,0.00020547,2]
[369802923,1751728256864,-915.95,0.00020547,2]
[369802924,1751728256874,-460.0,0.00020547,2]
[369802925,1751728256883,-460.0,0.00020547,2]
[369802926,1751728256893,-460.0,0.00020547,2]
[369802927,1751728256903,-460.0,0.00020547,2]
[369802928,1751728256913,-460.0,0.00020547,2]
[369802929,1751728256922,-460.0,0.00020547,2]
[369802930,1751728256932,-460.0,0.00020547,2]
[369802931,1751728256941,-460.0,0.00020547,2]
[369802932,1751728256950,-460.0,0.00020547,2]
[369802933,1751728256960,-460.0,0.00020547,2]
[369802934,1751728256969,-460.0,0.00020547,2]
[369802935,1751728256979,-473.71,0.00020547,2]
[369802936,1751728256988,-171.22,0.00020547,2]
[369802937,1751728256998,-460.0,0.00020547,2]
[369802938,1751728257008,-544.23,0.00020547,2]
[369802939,1751728257017,-460.0,0.00020547,2]
[369802940,1751728257027,-460.0,0.00020547,2]
[369802941,1751728257037,-460.0,0.00020547,2]
[369802942,1751728257046,-460.0,0.00020547,2]
[369802943,1751728257056,-460.0,0.00020547,2]
[369802944,1751728257066,-460.0,0.00020547,2]
[369802945,1751728257075,-460.0,0.00020547,2]
[369802946,1751728257084,-640.81,0.00020547,2]
[369802947,1751728257093,-460.0,0.00020547,2]
[369802948,1751728257103,-460.0,0.00020547,2]
[369802949,1751728257112,-1173.15,0.00020547,2]
[369802950,1751728257122,-511.43,0.00020547,2]
[369802951,1751728257131,-829.08,0.00020547,2]
[369802952,1751728257141,-818.45,0.00020547,2]
[369802953,1751728257151,-460.0,0.00020547,2]
[369802954,1751728257160,-460.0,0.00020547,2]
[369802955,1751728257169,-460.0,0.00020547,2]
[369802956,1751728257179,-460.0,0.00020547,2]
[369802957,1751728257188,-460.0,0.00020547,2]
[369802958,1751728257198,-460.0,0.00020547,2]
[369802959,1751728257207,-162.47404902,0.00020547,2]
[369802960,1751728257216,-460.0,0.00020547,2]
[369802961,1751728257226,-460.0,0.00020547,2]
[369802962,1751728257236,-605.44,0.00020547,2]
[369802963,1751728257245,-460.0,0.00020547,2]
[369802964,1751728257255,-477.38,0.00020547,2]
[369802965,1751728257265,-460.0,0.00020547,2]
[369802966,1751728257275,-460.0,0.00020547,2]
[369802967,1751728257284,-304.56904208,0.00020547,2]
[369802968,1751728257294,-460.0,0.00020547,2]
[369802969,1751728257303,-255.55,0.00020547,2]
[369802970,1751728257313,-460.0,0.00020547,2]
[369802971,1751728257322,-460.0,0.00020547,2]
[369802972,1751728257331,-260.87,0.00020547,2]
[369802973,1751728257340,-460.0,0.00020547,2]
[369802974,1751728257350,-1746.47,0.00020547,2]
[369802975,1751728257359,-460.0,0.00020547,2]
[369802976,1751728257368,-460.0,0.00020547,2]
[369802977,1751728257378,-460.0,0.00020547,2]
[369802978,1751728257387,-460.0,0.00020547,2]
[369802979,1751728257397,-1036.02,0.00020547,2]
[369802980,1751728257406,-662.47,0.00020547,2]
[369802981,1751728257416,-460.0,0.00020547,2]
[369802982,1751728257426,-3267.76,0.00020547,2]
[369802983,1751728257438,-2133.56,0.00020547,2]
[369802984,1751728257447,-3079.9,0.00020547,2]
[369802985,1751728257457,-460.0,0.00020547,2]
[369802986,1751728257466,-736.05,0.00020547,2]
[369802987,1751728257475,-2623.93,0.00020547,2]
[369802988,1751728257485,-460.0,0.00020547,2]
[369802989,1751728257494,-460.0,0.00020547,2]
[369802990,1751728257503,-5899.19,0.00020547,2]
[369802991,1751728257512,-1275.43,0.00020547,2]
[369802992,1751728257522,-1685.45,0.00020547,2]
[369802993,1751728257532,-460.0,0.00020547,2]
[369802994,1751728257541,-460.0,0.00020547,2]
[369802995,1751728257551,-460.0,0.00020547,2]
[369802996,1751728257561,-558.59945909,0.00020547,2]
[369802997,1751728257570,-604.25,0.00020547,2]